fUSD/lending_fUSD_20240729
["ID","MTS","AMOUNT","RATE_DAILY","PERIOD"]
[333558813,1722244299300,-503.13626444,0.00010998,2]
[333558814,1722244299309,-500.0,0.00010998,2]
[333558815,1722244299318,-500.0,0.00010998,2]
[333558816,1722244299328,-500.0,0.00010998,2]
[333558817,1722244299338,-500.0,0.00010998,2]
[333558818,1722244299347,-500.0,0.00010998,2]
[333558819,1722244299356,-500.0,0.00010998,2]
[333558820,1722244299365,-500.0,0.00010998,2]
[333558821,1722244299374,-500.0,0.00010998,2]
[333558822,1722244299384,-500.0,0.00010998,2]
[333558823,1722244299393,-599.48853976,0.00010998,2]
[333558824,1722244299402,-500.0,0.00010998,2]
[333558825,1722244299410,-500.0,0.00010998,2]
[333558826,1722244299420,-500.0,0.00010998,2]
[333558827,1722244299429,-500.0,0.00010998,2]
[333558828,1722244299438,-500.0,0.00010998,2]
[333558829,1722244299447,-443.49,0.00010998,2]
[333558830,1722244299457,-500.0,0.00010998,2]
[333558831,1722244299467,-500.0,0.00010998,2]
[333558832,1722244299476,-500.0,0.00010998,2]
[333558833,1722244299485,-500.0,0.00010998,2]
[333558834,1722244299495,-500.0,0.00010998,2]
[333558835,1722244299504,-368.04,0.00010998,2]
[333558836,1722244299514,-500.0,0.00010998,2]
[333558837,1722244299523,-520.74531489,0.00010998,2]
[333558838,1722244299532,-500.0,0.00010998,2]
[333558839,1722244299541,-500.0,0.00010998,2]
[333558840,1722244299550,-500.0,0.00010998,2]
[333558841,1722244299559,-409.2,0.00010998,2]
[333558842,1722244299568,-500.0,0.00010998,2]
[333558843,1722244299577,-500.0,0.00010998,2]
[333558844,1722244299586,-500.0,0.00010998,2]
[333558845,1722244299595,-500.0,0.00010998,2]
[333558846,1722244299604,-279.61151596,0.00010998,2]
[333558847,1722244299614,-501.00684389,0.00010998,2]
[333558848,1722244299623,-500.0,0.00010998,2]
[333558849,1722244299633,-500.0,0.00010998,2]
[333558850,1722244299642,-500.0,0.00010998,2]
[333558851,1722244299652,-500.0,0.00010998,2]
[333558852,1722244299661,-500.0,0.00010998,2]
[333558853,1722244299670,-505.29928397,0.00010998,2]
[333558854,1722244299680,-500.0,0.00010998,2]
[333558855,1722244299689,-500.0,0.00010998,2]
[333558856,1722244299699,-500.0,0.00010998,2]
[333558857,1722244299709,-500.0,0.00010998,2]
[333558858,1722244299718,-500.0,0.00010998,2]
[333558859,1722244299728,-500.0,0.00010998,2]
[333558860,1722244299737,-500.0,0.00010998,2]
[333558861,1722244299747,-500.0,0.00010998,2]
[333558862,1722244299756,-500.0,0.00010998,2]
[333558863,1722244299766,-500.0,0.00010998,2]
[333558864,1722244299775,-226.24,0.00010998,2]
[333558865,1722244299784,-500.0,0.00010998,2]
[333558866,1722244299794,-500.0,0.00010998,2]
[333558867,1722244299803,-500.0,0.00010998,2]
[333558868,1722244299813,-500.0,0.00010998,2]
[333558869,1722244299823,-502.60561851,0.00010998,2]
[333558870,1722244299832,-500.0,0.00010998,2]
[333558871,1722244299841,-500.0,0.00010998,2]
[333558872,1722244299855,-500.0,0.00010998,2]
[333558873,1722244299864,-500.0,0.00010998,2]
[333558874,1722244299874,-504.23017722,0.00010998,2]
[333558875,1722244299883,-500.0,0.00010998,2]
[333558876,1722244299894,-500.0,0.00010998,2]
[333558877,1722244299904,-500.0,0.00010998,2]
[333558878,1722244299913,-500.0,0.00010998,2]
[333558879,1722244299923,-500.0,0.00010998,2]
[333558880,1722244299934,-500.0,0.00010998,2]
[333558881,1722244299944,-500.0,0.00010998,2]
[333558882,1722244299953,-500.0,0.00010998,2]
[333558883,1722244299963,-500.0,0.00010998,2]
[333558884,1722244299972,-500.0,0.00010998,2]
[333558885,1722244299981,-500.0,0.00010998,2]
[333558886,1722244299991,-500.0,0.00010998,2]
[333558887,1722244300000,-547.6,0.00010998,2]
[333558888,1722244300010,-500.0,0.00010998,2]
[333558889,1722244300019,-500.0,0.00010998,2]
[333558890,1722244300029,-500.0,0.00010998,2]
[333558891,1722244300038,-559.6,0.00010998,2]
[333558892,1722244300048,-500.0,0.00010998,2]
[333558893,1722244300058,-500.0,0.00010998,2]
[333558894,1722244300068,-500.0,0.00010998,2]
[333558895,1722244300077,-500.0,0.00010998,2]
[333558896,1722244300087,-500.0,0.00010998,2]
[333558897,1722244300097,-500.0,0.00010998,2]
[333558898,1722244300106,-176.4,0.00010998,2]
[333558899,1722244300116,-500.0,0.00010998,2]
[333558900,1722244300126,-500.0,0.00010998,2]
[333558901,1722244300136,-553.4,0.00010998,2]
[333558902,1722244300146,-500.0,0.00010998,2]
[333558903,1722244300156,-500.0,0.00010998,2]
[333558904,1722244300165,-500.0,0.00010998,2]
[333558905,1722244300175,-168.18,0.00010998,2]
[333558906,1722244300185,-500.0,0.00010998,2]
[333558907,1722244300194,-500.0,0.00010998,2]
[333558908,1722244300204,-502.57154847,0.00010998,2]
[333558909,1722244300213,-500.0,0.00010998,2]
[333558910,1722244300223,-500.0,0.00010998,2]
[333558911,1722244300232,-506.16911953,0.00010998,2]
[333558912,1722244300242,-500.0,0.00010998,2]
[333558913,1722244300251,-500.0,0.00010998,2]
[333558914,1722244300261,-500.0,0.00010998,2]
[333558915,1722244300270,-500.0,0.00010998,2]
[333558916,1722244300279,-637.52,0.00010998,2]
[333558917,1722244300289,-500.0,0.00010998,2]
[333558918,1722244300298,-500.0,0.00010998,2]
[333558919,1722244300308,-500.0,0.00010998,2]
[333558920,1722244300318,-500.0,0.00010998,2]
[333558921,1722244300327,-503.76599746,0.00010998,2]
[333558922,1722244300337,-500.0,0.00010998,2]
[333558923,1722244300347,-500.0,0.00010998,2]
[333558924,1722244300357,-461.0026054,0.00010998,2]
[333558976,1722245321973,153.76904998,0.00015,120]
[333559057,1722245433937,-385.86,8.219e-05,2]
[333559058,1722245433947,-250.0,9.389e-05,2]
[333559059,1722245433957,-800.0,9.482e-05,2]
[333559060,1722245433967,-151.32101212,9.616e-05,2]
[333559061,1722245433976,-150.0,9.744e-05,2]
[333559062,1722245433985,-3096.43559311,9.746e-05,2]
[333559064,1722245434267,-2822.84080769,9.746e-05,2]
[333559066,1722245434277,-150.0,9.851e-05,2]
[333559068,1722245434287,-2000.0,9.946e-05,2]
[333559070,1722245434297,-178.44,9.958e-05,2]
[333559071,1722245434307,-150.0,9.961e-05,2]
[333559072,1722245434317,-150.0,9.963e-05,2]
[333559073,1722245434327,-499.99,9.963e-05,2]
[333559074,1722245434337,-778.39,9.984e-05,2]
[333559075,1722245434346,-200.0,0.00010001,2]
[333559076,1722245434356,-150.0,0.00010032,2]
[333559077,1722245434366,-150.0,0.00010065,2]
[333559078,1722245434377,-150.0,0.00010091,2]
[333559079,1722245434386,-57.17658544,0.00010173,2]
[333559080,1722245434402,-92.82341456,0.00010173,2]
[333559081,1722245434416,-150.0,0.00010232,2]
[333559082,1722245434426,-150.0,0.00010238,2]
[333559083,1722245434436,-150.0,0.00010303,2]
[333559084,1722245434446,-385.86,0.00010447,2]
[333559085,1722245434455,-61.3720281,0.00010533,2]
[333559086,1722245434467,-88.6279719,0.00010533,2]
[333559087,1722245434477,-150.0,0.00010566,2]
[333559088,1722245434487,-150.0,0.0001058,2]
[333559089,1722245434497,-163.36125358,0.000106,2]
[333559090,1722245434507,-150.0,0.000106,2]
[333559091,1722245434516,-75.69851405,0.00010603,2]
[333559092,1722245434528,-74.30148595,0.00010603,2]
[333559093,1722245434538,-150.0,0.00010616,2]
[333559094,1722245434548,-220.05224982,0.00010667,2]
[333559095,1722245434574,-579.94775018,0.00010667,2]
[333559096,1722245434583,-150.0,0.00010668,2]
[333559097,1722245434593,-150.0,0.00010682,2]
[333559098,1722245434602,-2455.43,0.00010699,2]
[333559099,1722245434612,-157755.72403405,0.000107,2]
[333559100,1722245434624,-47000.0,0.000107,2]
[333559104,1722245438514,-1202.866863,0.000107,2]
[333559105,1722245438583,-570.66823873,0.000107,2]
[333559106,1722245438594,-2752.47299442,0.000107,2]
[333559107,1722245438606,-1248.51712714,0.000107,2]
[333559108,1722245438642,-577.99,0.000107,2]
[333559115,1722245440409,-339.08499999,0.000107,2]
[333559116,1722245443077,-398163.22115039,0.000107,2]
[333559117,1722245443090,-692596.7353599,0.000107,2]
[333559131,1722245443381,-3918.7910805,0.000107,2]
[333559134,1722245443443,-1144.36375668,0.000107,2]
[333559135,1722245443455,-6706.48825678,0.000107,2]
[333559136,1722245443511,-1963.95623651,0.000107,2]
[333559137,1722245443522,-802.06340159,0.000107,2]
[333559138,1722245443573,-367.8993849,0.000107,2]
[333559139,1722245443690,-320.26401847,0.000107,2]
[333559140,1722245443819,-574762.64603433,0.000107,2]
[333559143,1722245446507,-263.59762012,0.000107,2]
[333559144,1722245446543,-850.0,0.000107,2]
[333559145,1722245446554,-3160.5631174,0.000107,2]
[333559146,1722245446620,-3178.80000003,0.000107,2]
[333559147,1722245446631,-848.2353195,0.000107,2]
[333559148,1722245446642,-10893.42068595,0.000107,2]
[333559149,1722245446653,-346.76974356,0.000107,2]
[333559150,1722245446695,-432.77116256,0.000107,2]
[333559151,1722245446706,-1762.97979238,0.000107,2]
[333559152,1722245446764,-234285.81777346,0.000107,2]
[333559153,1722245446775,-768.85,0.000107,2]
[333559154,1722245446830,-4940.94527216,0.000107,2]
[333559158,1722245731806,150.0,6.601e-05,2]
[333559159,1722245731827,150.0,6.601e-05,2]
[333559160,1722245731846,150.0,6.601e-05,2]
[333559161,1722245731866,57.13,6.601e-05,2]
[333559162,1722245769591,150.0,6.601e-05,2]
[333559163,1722245769612,150.0,6.601e-05,2]
[333559164,1722245769632,150.0,6.601e-05,2]
[333559165,1722245769652,150.0,6.601e-05,2]
[333559166,1722245769674,150.0,6.601e-05,2]
[333559167,1722245769695,150.0,6.601e-05,2]
[333559168,1722245769715,150.0,6.601e-05,2]
[333559169,1722245769736,150.0,6.601e-05,2]
[333559170,1722245769756,150.0,6.601e-05,2]
[333559171,1722245769776,150.0,6.601e-05,2]
[333559172,1722245769796,150.0,6.601e-05,2]
[333559173,1722245769816,150.0,6.601e-05,2]
[333559174,1722245769837,150.0,6.601e-05,2]
[333559175,1722245769858,150.0,6.601e-05,2]
[333559176,1722245769879,150.0,6.601e-05,2]
[333559177,1722245769900,150.0,6.601e-05,2]
[333559178,1722245769920,267.75320725,6.601e-05,2]
[333559179,1722245769941,150.0,6.601e-05,2]
[333559180,1722245774196,-354.45052355,6.601e-05,2]
[333559181,1722245774940,-526.6662692,6.601e-05,2]
[333559182,1722245775584,-150.0,6.601e-05,2]
[333559183,1722245775680,-485.05125098,6.601e-05,2]
[333559184,1722245776202,-313.93588496,6.601e-05,2]
[333559185,1722245778397,-150.0,6.601e-05,2]
[333559186,1722245778580,-150.0,6.601e-05,2]
[333559187,1722245778647,-150.0,6.601e-05,2]
[333559188,1722245778762,-150.0,6.601e-05,2]
[333559189,1722245778833,-150.0,6.601e-05,2]
[333559190,1722245778913,-150.0,6.601e-05,2]
[333559191,1722245778990,-150.0,6.601e-05,2]
[333559192,1722245779050,-150.0,6.601e-05,2]
[333559193,1722245779149,-150.0,6.601e-05,2]
[333559194,1722245779211,-150.0,6.601e-05,2]
[333559195,1722245779300,-150.0,6.601e-05,2]
[333559196,1722245779373,-150.0,6.601e-05,2]
[333559197,1722245779457,-150.0,6.601e-05,2]
[333559198,1722245779563,-150.0,6.601e-05,2]
[333559199,1722245779661,-150.0,6.601e-05,2]
[333559200,1722245779737,-150.0,6.601e-05,2]
[333559201,1722245779820,-245.54947645,6.601e-05,2]
[333559202,1722245820594,300.0,6.6e-05,2]
[333559203,1722245821397,300.0,6.6e-05,2]
[333559204,1722245864592,33250.0,6.6e-05,2]
[333559360,1722246631432,-150.0,6.599e-05,2]
[333559361,1722246631443,-300.0,6.599e-05,2]
[333559364,1722246631454,-178.42,6.6e-05,2]
[333559366,1722246631472,-446.45853724,6.6e-05,2]
[333559369,1722246631484,-927.83269367,6.6e-05,2]
[333559375,1722246631563,-2695.04311048,6.6e-05,2]
[333559376,1722246631576,-2281.279,6.6e-05,2]
[333559377,1722246631591,-909.71714587,6.6e-05,2]
[333559378,1722246631604,-1361.45276237,6.6e-05,2]
[333559379,1722246631618,-1198.16775,6.6e-05,2]
[333559380,1722246631633,-805.36977144,6.6e-05,2]
[333559381,1722246631647,-971.11180087,6.6e-05,2]
[333559382,1722246631660,-190849.63149415,6.6e-05,2]
[333559383,1722246631671,-600.0,6.6e-05,2]
[333559384,1722246631683,-999.26961576,6.6e-05,2]
[333559385,1722246631693,-220.12459623,6.6e-05,2]
[333559386,1722246631705,-755.58388595,6.6e-05,2]
[333559387,1722246631716,-703.09306552,6.6e-05,2]
[333559388,1722246631727,-179.0,7.259e-05,2]
[333559389,1722246631738,-420.0,7.259e-05,2]
[333559390,1722246631750,-150.0,7.699e-05,2]
[333559391,1722246631761,-174.08,7.719e-05,2]
[333559392,1722246631772,-1632.6662692,8.001e-05,2]
[333559393,1722246631783,-380.65,8.219e-05,2]
[333559394,1722246631794,-520.0,9.474e-05,2]
[333559395,1722246631805,-480.0,9.644e-05,2]
[333559396,1722246631817,-2000.0,9.649e-05,2]
[333559397,1722246631828,-260.58,9.918e-05,2]
[333559398,1722246631838,-1250.0,0.0001,2]
[333559399,1722246631850,-914.0,0.0001,2]
[333559400,1722246631861,-380.65,0.00010453,2]
[333559401,1722246631872,-1698.0,0.00010487,2]
[333559402,1722246631883,-2284.1087,0.000106,2]
[333559403,1722246631895,-2726.3686,0.000106,2]
[333559404,1722246631906,-1885.2999,0.000106,2]
[333559405,1722246631917,-2671.53293985,0.000106,2]
[333559406,1722246631928,-153.68776239,0.000106,2]
[333559407,1722246631939,-302.26,0.00010625,2]
[333559408,1722246631950,-150.0,0.00010625,2]
[333559409,1722246631962,-520.0,0.00010659,2]
[333559410,1722246631973,-1274322.37268988,0.000107,2]
[333559411,1722246631987,-24729.67258183,0.000107,2]
[333559412,1722246632001,-7343.88972904,0.000107,2]
[333559413,1722246632014,-617.94087704,0.000107,2]
[333559414,1722246632027,-1094.89027509,0.000107,2]
[333559415,1722246632040,-18273.5538286,0.000107,2]
[333559416,1722246632053,-5616.4461714,0.000107,2]
[333559417,1722246632066,-156714.72969039,0.000107,2]
[333559418,1722246632078,-24175.14347884,0.000107,2]
[333559419,1722246632101,-2157.02528709,0.000107,2]
[333559420,1722246632114,-9613.47470857,0.000107,2]
[333559421,1722246632135,-5973.18862995,0.000107,2]
[333559422,1722246632149,-1870.38996154,0.000107,2]
[333559423,1722246632169,-10839.0317153,0.000107,2]
[333559440,1722246637817,-4729.95705,0.000107,2]
[333559441,1722246637831,-47776.02367296,0.000107,2]
[333559442,1722246637848,-746.48651101,0.000107,2]
[333559443,1722246637861,-500.0,0.000107,2]
[333559444,1722246637875,-5175.27570451,0.000107,2]
[333559445,1722246637887,-512.01697496,0.000107,2]
[333559446,1722246637904,-321.30801753,0.000107,2]
[333559447,1722246638301,-1589792.67901997,0.000107,2]
[333559448,1722246638329,-1050.54047729,0.000107,2]
[333559449,1722246638343,-449.49624272,0.000107,2]
[333559450,1722246638352,-3000.0,0.000107,2]
[333559451,1722246638362,-200.0,0.000107,2]
[333559452,1722246638371,-150.0,0.00010719,2]
[333559453,1722246638380,-150.0,0.00010725,2]
[333559454,1722246638389,-150.0,0.00010729,2]
[333559455,1722246638400,-150.0,0.0001073,2]
[333559456,1722246638410,-150.0,0.00010733,2]
[333559457,1722246638419,-1500.0,0.00010733,2]
[333559458,1722246638430,-150.0,0.00010735,2]
[333559459,1722246638439,-150.0,0.00010736,2]
[333559460,1722246638448,-1129.91770407,0.00010739,2]
[333559461,1722246638457,-150.0,0.0001074,2]
[333559462,1722246638466,-150.0,0.00010742,2]
[333559463,1722246638475,-150.0,0.00010743,2]
[333559464,1722246638484,-150.0,0.00010743,2]
[333559465,1722246638493,-150.0,0.00010744,2]
[333559466,1722246638502,-150.0,0.00010747,2]
[333559467,1722246638512,-150.0,0.00010747,2]
[333559468,1722246638521,-150.0,0.0001075,2]
[333559469,1722246638530,-150.0,0.00010751,2]
[333559470,1722246638539,-300.0,0.00010752,2]
[333559471,1722246638549,-150.0,0.00010752,2]
[333559472,1722246638560,-150.0,0.00010755,2]
[333559473,1722246638570,-150.0,0.00010758,2]
[333559474,1722246638578,-150.0,0.00010761,2]
[333559475,1722246638588,-150.0,0.00010763,2]
[333559476,1722246638598,-150.0,0.00010763,2]
[333559477,1722246638607,-150.0,0.00010766,2]
[333559478,1722246638616,-150.0,0.0001077,2]
[333559479,1722246638626,-1054.16795249,0.00010771,2]
[333559480,1722246638636,-150.0,0.00010772,2]
[333559481,1722246638646,-150.0,0.00010773,2]
[333559482,1722246638655,-300.0,0.00010778,2]
[333559483,1722246638665,-150.0,0.0001078,2]
[333559484,1722246638674,-150.0,0.00010786,2]
[333559485,1722246638683,-150.0,0.00010786,2]
[333559486,1722246638693,-150.0,0.00010788,2]
[333559487,1722246638702,-150.0,0.00010791,2]
[333559489,1722246638711,-150.0,0.00010792,2]
[333559492,1722246638721,-150.0,0.00010794,2]
[333559495,1722246638730,-527.0,0.00010796,2]
[333559498,1722246638739,-150.0,0.00010797,2]
[333559501,1722246638748,-1500.0,0.00010799,2]
[333559504,1722246638758,-150.0,0.00010799,2]
[333559506,1722246638767,-150.0,0.000108,2]
[333559507,1722246638776,-150.0,0.00010802,2]
[333559509,1722246638786,-150.0,0.00010807,2]
[333559511,1722246638795,-150.0,0.0001081,2]
[333559513,1722246638805,-150.0,0.00010811,2]
[333559515,1722246638814,-150.0,0.00010812,2]
[333559517,1722246638823,-150.0,0.00010814,2]
[333559519,1722246638832,-150.0,0.00010817,2]
[333559521,1722246638842,-150.0,0.00010819,2]
[333559523,1722246638851,-150.0,0.0001082,2]
[333559525,1722246638860,-150.0,0.00010822,2]
[333559527,1722246638870,-150.0,0.00010825,2]
[333559529,1722246638880,-150.0,0.00010826,2]
[333559531,1722246638889,-150.0,0.00010828,2]
[333559533,1722246638900,-150.0,0.00010828,2]
[333559535,1722246638910,-150.0,0.00010829,2]
[333559537,1722246638919,-300.0,0.00010831,2]
[333559539,1722246638928,-1500.0,0.00010833,2]
[333559541,1722246638937,-150.0,0.00010833,2]
[333559543,1722246638947,-150.0,0.00010833,2]
[333559545,1722246638956,-150.0,0.00010834,2]
[333559546,1722246638965,-150.0,0.00010834,2]
[333559547,1722246638974,-1060.8796559,0.00010835,2]
[333559548,1722246638983,-150.0,0.00010836,2]
[333559549,1722246638993,-150.0,0.00010845,2]
[333559550,1722246639003,-150.0,0.00010846,2]
[333559551,1722246639012,-150.0,0.00010847,2]
[333559552,1722246639021,-366.9246615,0.00010848,2]
[333559553,1722246639030,-480.0,0.00010849,2]
[333559554,1722246639039,-150.0,0.00010853,2]
[333559555,1722246639049,-150.0,0.00010853,2]
[333559556,1722246639058,-150.0,0.00010856,2]
[333559557,1722246639067,-150.0,0.0001087,2]
[333559558,1722246639077,-150.0,0.00010872,2]
[333559559,1722246639086,-150.0,0.00010873,2]
[333559560,1722246639095,-150.0,0.00010874,2]
[333559561,1722246639104,-150.0,0.00010876,2]
[333559562,1722246639113,-300.0,0.00010877,2]
[333559563,1722246639122,-150.0,0.00010878,2]
[333559564,1722246639132,-150.0,0.00010879,2]
[333559565,1722246639141,-505641.48246836,0.0001088,2]
[333559566,1722246639151,-1500.0,0.00010887,2]
[333559567,1722246639160,-150.0,0.00010887,2]
[333559568,1722246639169,-150.0,0.00010887,2]
[333559569,1722246639178,-11715.51123529,0.0001089,2]
[333559570,1722246639187,-150.0,0.0001089,2]
[333559571,1722246639196,-150.0,0.00010892,2]
[333559572,1722246639206,-150.0,0.00010892,2]
[333559573,1722246639216,-168.8,0.00010899,2]
[333559574,1722246639225,-168.8,0.00010899,2]
[333559575,1722246639234,-168.8,0.00010899,2]
[333559576,1722246639243,-168.8,0.00010899,2]
[333559577,1722246639252,-150.0,0.000109,2]
[333559578,1722246639261,-462.0,0.000109,2]
[333559579,1722246639270,-462.0,0.000109,2]
[333559580,1722246639279,-462.0,0.000109,2]
[333559581,1722246639288,-462.0,0.000109,2]
[333559582,1722246639297,-462.0,0.000109,2]
[333559583,1722246639306,-462.0,0.000109,2]
[333559584,1722246639315,-462.0,0.000109,2]
[333559585,1722246639324,-462.0,0.000109,2]
[333559586,1722246639333,-168.8,0.000109,2]
[333559587,1722246639342,-462.0,0.000109,2]
[333559588,1722246639352,-462.0,0.000109,2]
[333559589,1722246639361,-462.0,0.000109,2]
[333559590,1722246639370,-462.0,0.000109,2]
[333559591,1722246639379,-462.0,0.000109,2]
[333559592,1722246639389,-462.0,0.000109,2]
[333559594,1722246639398,-462.0,0.000109,2]
[333559597,1722246639408,-160.86395712,0.000109,2]
[333559600,1722246639417,-462.0,0.000109,2]
[333559602,1722246639426,-462.0,0.000109,2]
[333559604,1722246639434,-462.0,0.000109,2]
[333559606,1722246639443,-462.0,0.000109,2]
[333559608,1722246639453,-462.0,0.000109,2]
[333559610,1722246639462,-153.65,0.000109,2]
[333559611,1722246639471,-150.0,0.00010901,2]
[333559613,1722246639480,-150.0,0.00010902,2]
[333559615,1722246639489,-150.0,0.00010906,2]
[333559616,1722246639498,-300.0,0.00010908,2]
[333559617,1722246639507,-150.0,0.00010908,2]
[333559618,1722246639516,-150.0,0.00010912,2]
[333559619,1722246639526,-150.0,0.00010914,2]
[333559620,1722246639535,-150.0,0.00010916,2]
[333559621,1722246639545,-150.0,0.0001092,2]
[333559622,1722246639554,-150.0,0.00010922,2]
[333559623,1722246639566,-150.0,0.00010922,2]
[333559625,1722246639576,-150.0,0.00010926,2]
[333559627,1722246639585,-150.0,0.00010928,2]
[333559629,1722246639594,-150.0,0.00010928,2]
[333559631,1722246639605,-172.277,0.00010928,2]
[333559633,1722246639614,-1925.0,0.00010928,2]
[333559635,1722246639623,-1581.0,0.00010928,2]
[333559637,1722246639634,-621.0,0.00010928,2]
[333559639,1722246639643,-445.0,0.00010928,2]
[333559641,1722246639652,-811.0,0.00010928,2]
[333559642,1722246639661,-450.0,0.00010928,2]
[333559644,1722246639671,-1370.0,0.00010928,2]
[333559646,1722246639680,-3879.567,0.00010928,2]
[333559648,1722246639689,-5831.0,0.00010928,2]
[333559650,1722246639698,-562.586,0.00010928,2]
[333559652,1722246639708,-262.161,0.00010928,2]
[333559654,1722246639717,-28705.24,0.00010928,2]
[333559656,1722246639726,-247.271,0.00010928,2]
[333559658,1722246639736,-150.0,0.00010928,2]
[333559660,1722246639745,-150.0,0.00010934,2]
[333559662,1722246639754,-150.0,0.00010938,2]
[333559664,1722246639764,-150.0,0.00010942,2]
[333559666,1722246639773,-150.0,0.00010943,2]
[333559668,1722246639783,-150.0,0.00010945,2]
[333559670,1722246639792,-150.0,0.00010949,2]
[333559672,1722246639802,-150.0,0.00010952,2]
[333559674,1722246639811,-1500.0,0.00010957,2]
[333559676,1722246639820,-577.97222309,0.00010957,2]
[333559678,1722246639829,-500.0,0.00010958,2]
[333559680,1722246639839,-500.0,0.00010958,2]
[333559682,1722246639848,-500.0,0.00010958,2]
[333559683,1722246639858,-500.0,0.00010958,2]
[333559685,1722246639867,-500.0,0.00010958,2]
[333559686,1722246639876,-983.83,0.00010958,2]
[333559687,1722246639886,-503.4193906,0.00010958,2]
[333559688,1722246639896,-983.83,0.00010958,2]
[333559689,1722246639905,-983.83,0.00010958,2]
[333559690,1722246639915,-983.83,0.00010958,2]
[333559691,1722246639924,-983.83,0.00010958,2]
[333559692,1722246639933,-500.0,0.00010958,2]
[333559693,1722246639943,-517.39,0.00010958,2]
[333559695,1722246639952,-500.0,0.00010958,2]
[333559696,1722246639962,-500.0,0.00010958,2]
[333559697,1722246639971,-500.0,0.00010958,2]
[333559698,1722246639980,-643.9,0.00010958,2]
[333559699,1722246639990,-500.0,0.00010958,2]
[333559700,1722246640000,-500.0,0.00010958,2]
[333559701,1722246640009,-500.0,0.00010958,2]
[333559702,1722246640018,-500.0,0.00010958,2]
[333559703,1722246640028,-500.0,0.00010958,2]
[333559704,1722246640037,-500.0,0.00010958,2]
[333559705,1722246640047,-500.0,0.00010958,2]
[333559706,1722246640056,-500.0,0.00010958,2]
[333559707,1722246640065,-500.0,0.00010958,2]
[333559708,1722246640074,-500.0,0.00010958,2]
[333559709,1722246640083,-500.0,0.00010958,2]
[333559710,1722246640092,-551.66,0.00010958,2]
[333559711,1722246640102,-500.0,0.00010958,2]
[333559713,1722246640111,-465.9,0.00010958,2]
[333559715,1722246640120,-500.0,0.00010958,2]
[333559717,1722246640129,-500.0,0.00010958,2]
[333559719,1722246640138,-316.0,0.00010958,2]
[333559721,1722246640149,-635.23,0.00010958,2]
[333559723,1722246640158,-458.56,0.00010958,2]
[333559725,1722246640167,-500.0,0.00010958,2]
[333559727,1722246640178,-500.0,0.00010958,2]
[333559729,1722246640187,-500.0,0.00010958,2]
[333559731,1722246640196,-500.0,0.00010958,2]
[333559733,1722246640206,-500.0,0.00010958,2]
[333559735,1722246640215,-500.0,0.00010958,2]
[333559737,1722246640224,-500.0,0.00010958,2]
[333559739,1722246640233,-500.0,0.00010958,2]
[333559740,1722246640243,-500.0,0.00010958,2]
[333559742,1722246640253,-500.0,0.00010958,2]
[333559744,1722246640264,-500.0,0.00010958,2]
[333559747,1722246640274,-150.10050993,0.00010958,2]
[333559750,1722246640283,-500.0,0.00010958,2]
[333559753,1722246640292,-500.0,0.00010958,2]